bitfinex-derivatives/quotes_BTCF0:USTF0_20260131
["timestamp","ask_amount","ask_price","bid_price","bid_amount"]
[1769890601150,0.012928,77461.0,77437.0,0.39233653]
[1769890601350,0.12911472,77460.0,77438.0,0.29867325]
[1769890601552,0.12911472,77460.0,77437.0,0.093]
[1769890601553,0.12911472,77460.0,77441.0,0.012931]
[1769890601753,0.12911472,77460.0,77439.0,0.29867325]
[1769890602058,0.012926,77473.0,77449.0,0.31160325]
[1769890602250,0.012926,77473.0,77449.0,0.29867325]
[1769890602451,0.012927,77469.0,77447.0,0.34028]
[1769890602650,0.012926,77473.0,77448.0,0.29867325]
[1769890603843,0.012925,77476.0,77451.0,0.31160325]
[1769890604045,0.10583,77478.0,77455.0,0.31160225]
[1769890604246,0.12909805,77477.0,77455.0,0.29867325]
[1769890604447,0.10583,77478.0,77464.0,0.012927]
[1769890604654,0.10583,77478.0,77455.0,0.29867325]
[1769890605455,0.10583,77478.0,77462.0,0.012928]
[1769890605656,0.10583,77478.0,77458.0,0.012928]
[1769890605856,0.10583,77478.0,77455.0,0.29867325]
[1769890605857,0.10583,77478.0,77460.0,0.012928]
[1769890606450,0.10583,77478.0,77455.0,0.29967325]
[1769890606654,0.118755,77478.0,77455.0,0.31260225]
[1769890606853,0.118755,77478.0,77442.0,0.012931]
[1769890606854,0.28618559,77472.0,77445.0,0.09304]
[1769890607050,0.012927,77470.0,77445.0,0.09304]
[1769890607247,0.012927,77467.0,77445.0,0.09304]
[1769890607554,0.012927,77468.0,77445.0,0.105971]
[1769890607753,0.012927,77468.0,77445.0,0.09304]
[1769890607955,0.28618559,77472.0,77445.0,0.09304]
[1769890608155,0.012927,77468.0,77445.0,0.09304]
[1769890608657,0.012926,77471.0,77446.0,0.29867325]
[1769890608856,0.197796,77478.0,77446.0,0.29867325]
[1769890609057,0.012926,77472.0,77446.0,0.31160325]
[1769890609252,0.12910138,77477.0,77446.0,0.31160325]
[1769890609562,0.197796,77478.0,77448.0,0.31160325]
[1769890609756,0.12910138,77477.0,77451.0,0.29867325]
[1769890609955,0.012926,77476.0,77453.0,0.31160225]
[1769890610155,0.012925,77477.0,77453.0,0.31160225]
[1769890610558,0.197796,77478.0,77456.0,0.29867325]
[1769890610854,0.197796,77478.0,77458.0,0.29867325]
[1769890611049,0.104756,77478.0,77460.0,0.29867325]
[1769890611456,0.29910559,77507.0,77469.0,0.29867325]
[1769890611759,0.012922,77496.0,77474.0,0.29867325]
[1769890611961,0.12908722,77498.0,77476.0,0.29867325]
[1769890612161,0.012922,77500.0,77476.0,0.29867325]
[1769890612359,0.012922,77497.0,77476.0,0.29867325]
[1769890613058,0.012918,77520.0,77493.0,0.29867325]
[1769890613360,0.01298968,77530.0,77477.0,0.012925]
[1769890613361,0.01292,77512.0,77494.0,0.09304]
[1769890613554,0.14197273,77519.0,77494.0,0.012922]
[1769890613856,0.012919,77516.0,77493.0,0.29867325]
[1769890614055,0.01292,77510.0,77488.0,0.09304]
[1769890614256,0.012919,77514.0,77488.0,0.40463625]
[1769890614555,0.01292,77512.0,77489.0,0.29867325]
[1769890614755,0.28634559,77517.0,77488.0,0.09304]
[1769890614960,0.01292,77511.0,77488.0,0.09304]
[1769890615158,0.00016,77517.0,77495.0,0.29867325]
[1769890615356,0.00016,77517.0,77488.0,0.09304]
[1769890615561,0.01292,77510.0,77488.0,0.39171325]
[1769890615757,0.012919,77514.0,77489.0,0.012923]
[1769890616061,0.00016,77517.0,77493.0,0.012922]
[1769890616260,0.00016,77517.0,77492.0,0.29867325]
[1769890616459,0.25378447,77553.0,77488.0,0.09304]
[1769890616460,0.012914,77542.0,77511.0,0.29867325]
[1769890616659,0.012914,77544.0,77518.0,0.31159125]
[1769890616958,0.12903392,77543.0,77512.0,0.4334]
[1769890617260,0.28618559,77547.0,77512.0,0.446319]
[1769890617461,0.012916,77535.0,77512.0,0.4334]
[1769890618268,0.012916,77532.0,77512.0,0.4334]
[1769890618756,0.012916,77536.0,77512.0,0.4334]
[1769890618951,0.012914,77543.0,77518.0,0.31159125]
[1769890619152,0.012915,77541.0,77518.0,0.29867325]
[1769890619552,0.001,77542.0,77519.0,0.29867325]
[1769890620261,0.001,77542.0,77528.0,0.31159025]
[1769890620465,0.00033,77547.0,77530.0,0.31158925]
[1769890620760,0.28618559,77573.0,77532.0,0.012916]
[1769890620964,0.012909,77574.0,77529.0,0.09304]
[1769890620965,0.28618559,77556.0,77529.0,0.09304]
[1769890621263,0.012914,77543.0,77529.0,0.09304]
[1769890621465,0.012914,77546.0,77529.0,0.09304]
[1769890621658,0.012915,77538.0,77529.0,0.09304]
[1769890621859,0.012914,77544.0,77529.0,0.09304]
[1769890622164,0.012915,77539.0,77529.0,0.09304]
[1769890622364,0.012915,77536.0,77516.0,0.29867325]
[1769890622565,0.012915,77536.0,77519.0,0.34028]
[1769890622960,0.012916,77534.0,77517.0,0.093]
[1769890623261,0.12898648,77535.0,77513.0,0.29867325]
[1769890623564,0.28618559,77558.0,77520.0,0.012918]
[1769890623565,0.001,77539.0,77520.0,0.012918]
[1769890623961,0.00038656,77539.0,77523.0,0.31159125]
[1769890624161,0.012912,77555.0,77529.0,0.29867325]
[1769890624357,0.28618559,77568.0,77532.0,0.012916]
[1769890624563,0.12898316,77557.0,77543.0,0.31158725]
[1769890624861,0.12898316,77557.0,77521.0,0.012918]
[1769890624862,0.28618559,77557.0,77522.0,0.29867325]
[1769890625066,0.012911,77562.0,77521.0,0.093]
[1769890625067,0.28618559,77553.0,77521.0,0.093]
[1769890625260,0.012915,77539.0,77521.0,0.093]
[1769890625461,0.28618559,77553.0,77521.0,0.093]
[1769890625462,0.29909859,77551.0,77521.0,0.093]
[1769890625765,0.012915,77540.0,77521.0,0.093]
[1769890625969,0.28618559,77551.0,77521.0,0.093]
[1769890626356,0.012915,77539.0,77521.0,0.093]
[1769890626562,0.012916,77534.0,77521.0,0.093]
[1769890626860,0.012916,77535.0,77521.0,0.093]
[1769890627066,0.28618559,77548.0,77521.0,0.093]
[1769890627262,0.012914,77545.0,77521.0,0.093]
[1769890627463,0.012916,77533.0,77513.0,0.012919]
[1769890627666,0.012917,77529.0,77514.0,0.093]
[1769890628569,0.012917,77527.0,77514.0,0.093]
[1769890628960,0.012917,77527.0,77511.0,0.29867325]
[1769890629168,0.012917,77530.0,77513.0,0.093]
[1769890629664,0.012917,77528.0,77513.0,0.093]
[1769890629967,0.012915,77541.0,77513.0,0.093]
[1769890630166,0.2872519,77552.0,77518.0,0.012918]
[1769890630367,0.012915,77538.0,77518.0,0.012918]
[1769890630870,0.012913,77553.0,77531.0,0.29147723]
[1769890631062,0.012913,77553.0,77532.0,0.37156123]
[1769890631262,0.12898565,77551.0,77532.0,0.37156123]
[1769890631461,0.012913,77551.0,77532.0,0.37156123]
[1769890631769,0.012913,77549.0,77532.0,0.37156123]
[1769890631964,0.012913,77549.0,77532.0,0.093]
[1769890632166,0.1289632,77564.0,77535.0,0.27856123]
[1769890632370,0.2872519,77565.0,77535.0,0.27856123]
[1769890632560,0.012912,77560.0,77535.0,0.27856123]
[1769890632763,0.1418742,77563.0,77541.0,0.012914]
[1769890632969,0.012911,77563.0,77541.0,0.29147523]
[1769890633664,0.01291,77572.0,77541.0,0.27856123]
[1769890633860,0.012911,77565.0,77541.0,0.29147523]
[1769890634468,0.2872519,77578.0,77541.0,0.27856123]
[1769890634665,0.012911,77562.0,77541.0,0.27856123]
[1769890635065,0.2872519,77578.0,77546.0,0.27856123]
[1769890635271,0.093,77579.0,77548.0,0.27856123]
[1769890635466,0.12894657,77574.0,77548.0,0.27856123]
[1769890635666,0.093,77579.0,77548.0,0.27856123]
[1769890636169,0.012909,77573.0,77550.0,0.27856123]
[1769890636364,0.12894657,77578.0,77550.0,0.27856123]
[1769890636564,0.093,77579.0,77557.0,0.27856123]
[1769890636764,0.2872519,77587.0,77557.0,0.27856123]
[1769890637072,0.012908,77579.0,77553.0,0.012913]
[1769890637470,0.012909,77577.0,77553.0,0.29147423]
[1769890637775,0.12891249,77585.0,77555.0,0.012912]
[1769890637965,0.012909,77576.0,77555.0,0.012912]
[1769890638167,0.2872519,77587.0,77555.0,0.012912]
[1769890638372,0.012908,77583.0,77560.0,0.012911]
[1769890638571,0.09296,77590.0,77560.0,0.29147223]
[1769890638572,0.012908,77581.0,77560.0,0.29147223]
[1769890638869,0.012908,77582.0,77561.0,0.012911]
[1769890639272,0.012908,77582.0,77560.0,0.27856123]
[1769890639467,0.012908,77580.0,77560.0,0.27856123]
[1769890639664,0.09296,77590.0,77560.0,0.27856123]
[1769890639864,0.12891498,77589.0,77561.0,0.012911]
[1769890640059,0.09296,77590.0,77563.0,0.012911]
[1769890640274,0.25230378,77589.0,77563.0,0.012911]
[1769890640473,0.12339628,77588.0,77563.0,0.012911]
[1769890640672,0.12339628,77587.0,77563.0,0.012911]
[1769890640864,0.012906,77591.0,77568.0,0.27856123]
[1769890641069,0.012905,77597.0,77571.0,0.27856123]
[1769890641362,0.09296,77605.0,77564.0,0.09296]
[1769890641363,0.2872519,77588.0,77564.0,0.09296]
[1769890641768,0.2872519,77588.0,77558.0,0.27856123]
[1769890641967,0.012909,77578.0,77551.0,0.27856123]
[1769890642167,0.012909,77575.0,77553.0,0.012913]
[1769890642673,0.012909,77575.0,77553.0,0.29147423]
[1769890642874,0.012909,77573.0,77553.0,0.27856123]
[1769890643076,0.01291,77567.0,77550.0,0.09296]
[1769890643767,0.012908,77582.0,77559.0,0.27856123]
[1769890643973,0.105866,77595.0,77550.0,0.09296]
[1769890643974,0.2872519,77586.0,77550.0,0.09296]
[1769890644171,0.2872519,77582.0,77550.0,0.09296]
[1769890644377,0.012906,77592.0,77550.0,0.09296]
[1769890644378,0.01291,77568.0,77550.0,0.09296]
[1769890644876,0.012911,77566.0,77550.0,0.09296]
[1769890645465,0.2872519,77581.0,77550.0,0.09296]
[1769890645671,0.012908,77579.0,77555.0,0.27856123]
[1769890645978,0.12121742,77578.0,77557.0,0.012912]
[1769890646279,0.13421086,77577.0,77557.0,0.012912]
[1769890646471,0.01291,77570.0,77550.0,0.09296]
[1769890646773,0.012909,77577.0,77550.0,0.09296]
[1769890646970,0.012911,77565.0,77550.0,0.09296]
[1769890647779,0.012911,77565.0,77550.0,0.09396]
[1769890648072,0.012911,77563.0,77550.0,0.09396]
[1769890648475,0.012911,77566.0,77550.0,0.09296]
[1769890648878,0.01291,77571.0,77550.0,0.105873]
[1769890649076,0.01291,77569.0,77550.0,0.105873]
[1769890649477,0.012909,77574.0,77554.0,0.012912]
[1769890649671,0.12151798,77573.0,77556.0,0.012912]
[1769890649973,0.012909,77574.0,77556.0,0.012912]
[1769890650173,0.09296,77581.0,77553.0,0.012912]
[1769890650373,0.12151661,77580.0,77553.0,0.012912]
[1769890650574,0.12151661,77579.0,77553.0,0.012912]
[1769890650774,0.2872519,77577.0,77550.0,0.105873]
[1769890651068,0.12153921,77576.0,77550.0,0.09296]
[1769890651379,0.012909,77574.0,77544.0,0.09296]
[1769890651583,0.012911,77564.0,77545.0,0.29147523]
[1769890651876,0.01291,77567.0,77547.0,0.012914]
[1769890652082,0.012911,77563.0,77545.0,0.27856123]
[1769890652276,0.012909,77574.0,77545.0,0.27856123]
[1769890652478,0.2872519,77577.0,77545.0,0.27856123]
[1769890652479,0.012911,77561.0,77545.0,0.27856123]
[1769890652775,0.012911,77563.0,77545.0,0.27856123]
[1769890653772,0.2872519,77569.0,77544.0,0.09296]
[1769890653978,0.2872519,77564.0,77544.0,0.09296]
[1769890654178,0.012912,77555.0,77544.0,0.09296]
[1769890654483,0.12345236,77554.0,77530.0,0.27856123]
[1769890654676,0.012913,77551.0,77532.0,0.27856123]
[1769890654877,0.12893825,77562.0,77539.0,0.27856123]
[1769890655073,0.09296,77566.0,77548.0,0.29147423]
[1769890655474,0.01291,77571.0,77552.0,0.29147423]
[1769890655675,0.012909,77575.0,77544.0,0.09296]
[1769890655886,0.012912,77559.0,77544.0,0.09296]
[1769890656176,0.012911,77562.0,77544.0,0.09296]
[1769890656573,0.012912,77558.0,77544.0,0.09296]
[1769890656777,0.2872519,77569.0,77544.0,0.09296]
[1769890656778,0.012913,77552.0,77544.0,0.09296]
[1769890656979,0.012913,77549.0,77544.0,0.09296]
[1769890657179,0.012913,77549.0,77534.0,0.34004]
[1769890657380,0.012914,77547.0,77531.0,0.09296]
[1769890657885,0.012914,77544.0,77531.0,0.09296]
[1769890658681,0.012914,77548.0,77531.0,0.09296]
[1769890659478,0.012913,77551.0,77531.0,0.09296]
[1769890659680,0.012912,77554.0,77535.0,0.27997467]
[1769890659884,0.105872,77557.0,77536.0,0.29288967]
[1769890660078,0.012912,77555.0,77536.0,0.27997467]
[1769890660780,0.09296,77557.0,77536.0,0.27997467]
[1769890660981,0.13425412,77556.0,77536.0,0.27997467]
[1769890661284,0.012913,77554.0,77536.0,0.27997467]
[1769890661486,0.09296,77557.0,77536.0,0.27997467]
[1769890661880,0.012911,77565.0,77543.0,0.30679028]
[1769890662186,0.01291,77568.0,77547.0,0.012914]
[1769890662886,0.01291,77568.0,77547.0,0.30679028]
[1769890663083,0.01291,77571.0,77551.0,0.012913]
[1769890663387,0.12154648,77570.0,77551.0,0.30678928]
[1769890663581,0.12154648,77569.0,77551.0,0.30678928]
[1769890663783,0.01291,77570.0,77551.0,0.29387628]
[1769890663983,0.12156225,77569.0,77551.0,0.29387628]
[1769890664284,0.01291,77568.0,77551.0,0.29387628]
[1769890664586,0.09296,77574.0,77551.0,0.29387628]
[1769890664587,0.01291,77571.0,77551.0,0.29387628]
[1769890664890,0.11773369,77570.0,77551.0,0.29387628]
[1769890665079,0.01291,77572.0,77551.0,0.29387628]
[1769890665280,0.11773214,77571.0,77553.0,0.29387628]
[1769890665479,0.09296,77574.0,77553.0,0.29387628]
[1769890665884,0.28380522,77592.0,77553.0,0.29387628]
[1769890666088,0.012909,77574.0,77553.0,0.29387628]
[1769890666690,0.012909,77574.0,77555.0,0.29387628]
[1769890669984,0.09296,77586.0,77555.0,0.29387628]
[1769890670190,0.012909,77577.0,77558.0,0.29387628]
[1769890671381,0.76222963,77669.0,77558.0,0.29387628]
[1769890671382,0.012907,77588.0,77569.0,0.29387628]
[1769890671586,0.012907,77586.0,77569.0,0.29387628]
[1769890671786,0.012905,77599.0,77561.0,0.09296]
[1769890671787,0.11514475,77585.0,77571.0,0.29387628]
[1769890671982,0.012907,77589.0,77571.0,0.30678628]
[1769890672183,0.012907,77589.0,77571.0,0.29387628]
[1769890672383,0.012907,77588.0,77571.0,0.29387628]
[1769890672692,0.28380522,77589.0,77554.0,0.29387628]
[1769890672880,0.012908,77579.0,77560.0,0.012911]
[1769890673086,0.28380522,77581.0,77555.0,0.43296]
[1769890673287,0.09296,77586.0,77555.0,0.43296]
[1769890673288,0.012909,77572.0,77555.0,0.43296]
[1769890673887,0.28380522,77579.0,77555.0,0.43296]
[1769890674089,0.01291,77571.0,77555.0,0.43296]
[1769890674290,0.41273184,77578.0,77555.0,0.43296]
[1769890674485,0.01291,77570.0,77555.0,0.43296]
[1769890674790,0.01291,77570.0,77555.0,0.09296]
[1769890675188,0.01291,77571.0,77555.0,0.09296]
[1769890675388,0.28380522,77578.0,77555.0,0.09296]
[1769890675586,0.12892828,77577.0,77555.0,0.09296]
[1769890675786,0.28380522,77578.0,77555.0,0.09296]
[1769890675986,0.12892828,77576.0,77555.0,0.09296]
[1769890676488,0.28380522,77578.0,77555.0,0.09296]
[1769890676683,0.01291,77569.0,77555.0,0.09296]
[1769890677695,0.01291,77569.0,77550.0,0.56439323]
[1769890677991,0.012909,77576.0,77551.0,0.012913]
[1769890678187,0.01291,77568.0,77551.0,0.012913]
[1769890678389,0.28380522,77575.0,77550.0,0.27051695]
[1769890678781,0.01291,77567.0,77550.0,0.28342995]
[1769890679388,0.28380522,77575.0,77550.0,0.28342995]
[1769890679389,0.28380522,77575.0,77550.0,0.27051695]
[1769890679590,0.012911,77566.0,77550.0,0.27051695]
[1769890680694,0.012911,77565.0,77550.0,0.27051695]
[1769890681688,0.28380522,77575.0,77550.0,0.27051695]
[1769890681888,0.28380522,77584.0,77554.0,0.29387628]
[1769890682093,0.28380522,77584.0,77561.0,0.012911]
[1769890682289,0.12893659,77585.0,77563.0,0.012911]
[1769890682488,0.012908,77578.0,77561.0,0.29387628]
[1769890682701,0.012908,77578.0,77553.0,0.012913]
[1769890682702,0.012908,77578.0,77562.0,0.30678728]
[1769890683693,0.012908,77578.0,77562.0,0.29387628]
[1769890683898,0.012909,77576.0,77562.0,0.29387628]
[1769890684397,0.012908,77580.0,77564.0,0.29387628]
[1769890684600,0.09296,77586.0,77564.0,0.29387628]
[1769890684792,0.11566187,77585.0,77566.0,0.29387628]
[1769890684991,0.28380522,77600.0,77553.0,0.012912]
[1769890684992,0.11566187,77584.0,77570.0,0.29387628]
[1769890685194,0.28380522,77600.0,77570.0,0.29387628]
[1769890685195,0.012907,77586.0,77570.0,0.29387628]
[1769890685394,0.11566503,77585.0,77570.0,0.29387628]
[1769890685588,0.28380522,77609.0,77571.0,0.38679628]
[1769890685787,0.012906,77595.0,77577.0,0.30678528]
[1769890686198,0.012905,77597.0,77579.0,0.012908]
[1769890686497,0.28380522,77607.0,77579.0,0.29387628]
[1769890686696,0.28380522,77607.0,77584.0,0.29387628]
[1769890686897,0.012905,77600.0,77584.0,0.29387628]
[1769890687094,0.012905,77598.0,77584.0,0.29387628]
[1769890687693,0.012905,77602.0,77584.0,0.29387628]
[1769890687891,0.012904,77605.0,77586.0,0.28238198]
[1769890688197,0.012904,77605.0,77588.0,0.28238198]
[1769890688398,0.29340797,77607.0,77573.0,0.28238198]
[1769890688589,0.12887345,77604.0,77573.0,0.28238198]
[1769890688791,0.001,77598.0,77573.0,0.28238198]
[1769890688993,0.012905,77597.0,77577.0,0.012909]
[1769890689299,0.012906,77595.0,77575.0,0.28238198]
[1769890689500,0.012907,77587.0,77572.0,0.09292]
[1769890689694,0.29340797,77598.0,77572.0,0.09292]
[1769890689897,0.012908,77580.0,77570.0,0.27051695]
[1769890690200,0.11884389,77597.0,77570.0,0.27051695]
[1769890690201,0.012907,77586.0,77570.0,0.27051695]
[1769890690796,0.29240797,77591.0,77561.0,0.09292]
[1769890691099,0.09292,77595.0,77565.0,0.28238198]
[1769890691100,0.012908,77584.0,77565.0,0.28238198]
[1769890691303,0.012908,77582.0,77565.0,0.28238198]
[1769890691597,0.012908,77583.0,77565.0,0.29529298]
[1769890692495,0.38532797,77595.0,77571.0,0.28238198]
[1769890692496,0.09292,77595.0,77571.0,0.28238198]
[1769890692695,0.012907,77588.0,77575.0,0.28238198]
[1769890692895,0.012909,77578.0,77561.0,0.09292]
[1769890693101,0.29240797,77587.0,77561.0,0.09292]
[1769890693402,0.012909,77575.0,77561.0,0.09292]
[1769890693700,0.29240797,77573.0,77543.0,0.012914]
[1769890694094,0.012912,77557.0,77538.0,0.09292]
[1769890694794,0.01291,77567.0,77538.0,0.09292]
[1769890694795,0.29240797,77567.0,77538.0,0.09292]
[1769890695001,0.012913,77552.0,77538.0,0.09292]
[1769890696197,0.29240797,77561.0,77538.0,0.09292]
[1769890696198,0.012913,77548.0,77538.0,0.09292]
[1769890696403,0.012914,77546.0,77526.0,0.28238198]
[1769890696594,0.012914,77544.0,77526.0,0.28238198]
[1769890696792,0.12895737,77560.0,77524.0,0.43288]
[1769890696793,0.012911,77563.0,77544.0,0.012914]
[1769890696996,0.012911,77563.0,77544.0,0.29529598]
[1769890698003,0.012911,77563.0,77544.0,0.28238198]
[1769890698203,0.012911,77561.0,77544.0,0.28238198]
[1769890698407,0.01291,77567.0,77544.0,0.28238198]
[1769890698703,0.012911,77565.0,77544.0,0.28238198]
[1769890698903,0.012911,77563.0,77544.0,0.28238198]
[1769890699497,0.12894324,77564.0,77543.0,0.012914]
[1769890699498,0.09292,77568.0,77549.0,0.28238198]
[1769890699705,0.09292,77568.0,77554.0,0.28238198]
[1769890702899,0.09292,77568.0,77547.0,0.012914]
[1769890702900,0.10583,77568.0,77547.0,0.012914]
[1769890703100,0.012911,77565.0,77543.0,0.09292]
[1769890703301,0.012914,77544.0,77531.0,0.28238198]
[1769890703501,0.012915,77542.0,77525.0,0.09296]
[1769890703903,0.012914,77543.0,77525.0,0.37534198]
[1769890704105,0.012913,77553.0,77525.0,0.37534198]
[1769890704308,0.012914,77543.0,77526.0,0.28238198]
[1769890705505,0.012911,77564.0,77534.0,0.28238198]
[1769890705711,0.012914,77546.0,77526.0,0.29529898]
[1769890706008,0.012915,77539.0,77511.0,0.62238198]
[1769890706216,0.012915,77539.0,77512.0,0.28238198]
[1769890706512,0.012915,77539.0,77507.0,0.09296]
[1769890706513,0.012918,77521.0,77507.0,0.09296]
[1769890706708,0.012917,77530.0,77507.0,0.09296]
[1769890706904,0.012917,77529.0,77504.0,0.28238198]
[1769890707115,0.012919,77514.0,77504.0,0.28238198]
[1769890707507,0.012916,77532.0,77504.0,0.28238198]
[1769890707706,0.012917,77527.0,77509.0,0.29530198]
[1769890708313,0.012917,77527.0,77509.0,0.28238198]
[1769890708513,0.012917,77525.0,77509.0,0.28238198]
[1769890709115,0.012918,77523.0,77509.0,0.28238198]
[1769890709814,0.012918,77524.0,77509.0,0.28238198]
[1769890710311,0.012919,77516.0,77503.0,0.00012809]
[1769890711018,0.012919,77514.0,77503.0,0.00012809]
[1769890711318,0.012919,77517.0,77503.0,0.00012809]
[1769890711817,0.012919,77515.0,77503.0,0.00012809]
[1769890714823,0.30532497,77526.0,77503.0,0.00012809]
[1769890714824,0.012919,77516.0,77503.0,0.00012809]
[1769890715217,0.012919,77514.0,77503.0,0.00012809]
[1769890717026,0.012919,77517.0,77503.0,0.00012809]
[1769890717227,0.29240797,77526.0,77503.0,0.00012809]
[1769890717432,0.09296,77527.0,77503.0,0.00012809]
[1769890717433,0.012918,77520.0,77503.0,0.00012809]
[1769890718027,0.006918,77520.0,77503.0,0.00012809]
[1769890718326,0.006918,77520.0,77503.0,0.2971536]
[1769890718531,0.012918,77521.0,77503.0,0.2971536]
[1769890718922,0.012918,77519.0,77503.0,0.2971536]
[1769890721027,0.012918,77520.0,77503.0,0.2971536]
[1769890723126,0.093,77525.0,77503.0,0.2971536]
[1769890723529,0.12901311,77524.0,77503.0,0.2971536]
[1769890723724,0.012919,77518.0,77503.0,0.2971536]
[1769890724033,0.27381573,77538.0,77510.0,0.27557632]
[1769890724232,0.13970557,77537.0,77510.0,0.27557632]
[1769890724532,0.012917,77528.0,77510.0,0.27557632]
[1769890724830,0.012917,77526.0,77510.0,0.27557632]
[1769890725223,0.012918,77523.0,77510.0,0.27557632]
[1769890725621,0.27381573,77533.0,77510.0,0.27557632]
[1769890725828,0.13454683,77532.0,77510.0,0.27557632]
[1769890726132,0.012917,77525.0,77510.0,0.27557632]
[1769890726328,0.12900229,77532.0,77510.0,0.27557632]
[1769890726628,0.012917,77527.0,77510.0,0.27557632]
[1769890726828,0.1289973,77531.0,77510.0,0.27557632]
[1769890727028,0.012918,77522.0,77510.0,0.27557632]
[1769890727228,0.012917,77525.0,77510.0,0.27557632]
[1769890727427,0.012918,77519.0,77503.0,0.27570441]
[1769890727633,0.012919,77517.0,77503.0,0.27570441]
[1769890727832,0.012919,77517.0,77503.0,0.00012809]
[1769890728231,0.093,77527.0,77505.0,0.28849732]
[1769890728432,0.012918,77523.0,77505.0,0.28849732]
[1769890729830,0.012918,77523.0,77505.0,0.27557632]
[1769890730235,0.090918,77527.0,77505.0,0.27557632]
[1769890730534,0.13480243,77526.0,77505.0,0.27557632]
[1769890730734,0.13480243,77525.0,77505.0,0.27557632]
[1769890730934,0.012919,77516.0,77505.0,0.27557632]
[1769890731132,0.012918,77519.0,77505.0,0.27557632]
[1769890731328,0.28673173,77534.0,77505.0,0.27557632]
[1769890731534,0.012916,77531.0,77512.0,0.27557632]
[1769890731734,0.13493528,77530.0,77512.0,0.27557632]
[1769890731930,0.012916,77531.0,77512.0,0.27557632]
[1769890732129,0.13301519,77530.0,77512.0,0.27557632]
[1769890732332,0.13301519,77529.0,77512.0,0.27557632]
[1769890732532,0.13301519,77528.0,77514.0,0.27557632]
[1769890732733,0.012916,77532.0,77515.0,0.28849532]
[1769890732934,0.13301346,77531.0,77515.0,0.27557632]
[1769890733129,0.13301346,77530.0,77516.0,0.012919]
[1769890733436,0.13301346,77529.0,77516.0,0.012919]
[1769890733636,0.012916,77533.0,77516.0,0.012919]
[1769890733637,0.13301346,77528.0,77516.0,0.012919]
[1769890733832,0.13301346,77527.0,77516.0,0.012919]
[1769890734137,0.13318935,77526.0,77515.0,0.27557632]
[1769890734337,0.13318935,77525.0,77515.0,0.27557632]
[1769890734536,0.012915,77538.0,77518.0,0.28849432]
[1769890734730,0.012916,77534.0,77518.0,0.27557632]
[1769890734931,0.13327884,77533.0,77518.0,0.27557632]
[1769890735138,0.13327884,77532.0,77518.0,0.27557632]
[1769890735337,0.13327884,77531.0,77514.0,0.012919]
[1769890735637,0.13327884,77530.0,77511.0,0.27557632]
[1769890735836,0.13327884,77529.0,77513.0,0.27557632]
[1769890736037,0.13327884,77528.0,77515.0,0.27557632]
[1769890736225,0.13327884,77527.0,77515.0,0.27557632]
[1769890736432,0.13327884,77526.0,77515.0,0.27557632]
[1769890736630,0.13327884,77525.0,77515.0,0.27557632]
[1769890736838,0.13327884,77524.0,77515.0,0.27557632]
[1769890737136,0.13327884,77523.0,77515.0,0.27557632]
[1769890737335,0.105915,77541.0,77503.0,0.00012809]
[1769890737631,0.012916,77531.0,77503.0,0.00012809]
[1769890737837,0.012917,77529.0,77503.0,0.00012809]
[1769890738038,0.012918,77524.0,77503.0,0.00012809]
[1769890738336,0.22329203,77523.0,77503.0,0.00012809]
[1769890738530,0.13029203,77522.0,77503.0,0.00012809]
[1769890738737,0.13029203,77521.0,77503.0,0.00012809]
[1769890738938,0.13029203,77520.0,77503.0,0.00012809]
[1769890739137,0.13029203,77519.0,77503.0,0.27570441]
[1769890739336,0.13029203,77518.0,77503.0,0.27570441]
[1769890739639,0.01292,77512.0,77503.0,0.27570441]
[1769890740536,0.012919,77515.0,77503.0,0.27570441]
[1769890740736,0.012918,77521.0,77503.0,0.27570441]
[1769890741039,0.12814723,77520.0,77503.0,0.27570441]
[1769890741236,0.12814723,77519.0,77503.0,0.27570441]
[1769890741433,0.27381573,77516.0,77503.0,0.00012809]
[1769890741636,0.12814723,77518.0,77494.0,0.09296]
[1769890741637,0.27381573,77514.0,77494.0,0.09296]
[1769890741833,0.01292,77507.0,77494.0,0.09296]
[1769890742134,0.01292,77510.0,77495.0,0.27557632]
[1769890742339,0.01292,77506.0,77495.0,0.27557632]
[1769890742633,0.012921,77504.0,77495.0,0.27557632]
[1769890743341,0.00014209,77505.0,77495.0,0.27557632]
[1769890743540,0.012921,77503.0,77495.0,0.27557632]
[1769890743734,0.005,77524.0,77502.0,0.27557632]
[1769890744040,0.12903309,77522.0,77502.0,0.27557632]
[1769890744233,0.012919,77516.0,77502.0,0.27557632]
[1769890744433,0.09777655,77515.0,77502.0,0.27557632]
[1769890744738,0.01292,77510.0,77502.0,0.27557632]
[1769890744931,0.27381573,77512.0,77494.0,0.09296]
[1769890745438,0.012921,77501.0,77489.0,0.27557632]
[1769890746542,0.012921,77502.0,77489.0,0.27557632]
[1769890746838,0.27381573,77520.0,77498.0,0.012922]
[1769890747038,0.093,77517.0,77495.0,0.29033048]
[1769890747240,0.01292,77511.0,77495.0,0.29033048]
[1769890747442,0.01292,77510.0,77495.0,0.29033048]
[1769890747633,0.01292,77508.0,77495.0,0.29033048]
[1769890749140,0.01292,77511.0,77495.0,0.29033048]
[1769890749338,0.093,77516.0,77495.0,0.29033048]
[1769890749542,0.01292,77507.0,77495.0,0.29033048]
[1769890749844,0.01292,77510.0,77495.0,0.29033048]
[1769890750434,0.01292,77509.0,77495.0,0.29033048]
[1769890751540,0.069,77516.0,77495.0,0.29033048]
[1769890751941,0.12902892,77515.0,77495.0,0.29033048]
[1769890752436,0.12902892,77515.0,77495.0,0.30325248]
[1769890752641,0.069,77516.0,77500.0,0.29033048]
[1769890753137,0.012919,77515.0,77500.0,0.29033048]
[1769890755336,0.069,77516.0,77500.0,0.29033048]
[1769890755337,0.012919,77513.0,77500.0,0.29033048]
[1769890755537,0.01292,77512.0,77500.0,0.29033048]
[1769890755735,0.01292,77510.0,77500.0,0.29033048]
[1769890756941,0.01292,77512.0,77500.0,0.29033048]
[1769890758435,0.069,77516.0,77494.0,0.30325248]
[1769890758631,0.1237301,77515.0,77494.0,0.30325248]
[1769890758836,0.069,77516.0,77494.0,0.29033048]
[1769890759141,0.27575098,77513.0,77494.0,0.29033048]
[1769890759343,0.012921,77505.0,77494.0,0.29033048]